Cogmind - Beta 15 @@@ ROGUE MODE // 2025.08.07 @ 08:18:38 Player: shapeshifter Result: Destroyed by S-43 Plague with Heavy Machine Gun Performance ------------- Evolutions (6) 3000 Regions Visited (21) 4200 Robots Destroyed (178) 890 Value Destroyed (5216) 5216 Prototype IDs (14) 280 Alien Tech Used (0) 0 Bonus (2542) 2542 TOTAL SCORE: 16128 Bonus ------- High Alert Combat Kills 140 Follower Combat Kills 456 Entered DSFs 500 Met Imprinter 300 Was Imprinted 300 Met Warlord at Base 500 MAIN.C Attacked Warlord 500 Friendly Fire -154 Cogmind --------- Core Integrity 0/1150 Matter 141/300 Energy 98/100 System Corruption 0% Temperature Cool (0) Movement Core (50) Location -3/Proximity Caves Parts ------- > --- POWER (2) -------- (None) > --- PROPULSION (8) --- (None) > --- UTILITY (7) ------ (None) > --- WEAPON (2) ------- (None) > --- INVENTORY (5) ---- Armored Medium Treads Dirty Datajack (20) Remote Datajack Vortex Lance (40) Vortex Lance (40) Peak State ------------ > --- POWER ------------ Deuterium Engine Light Nuclear Core > --- PROPULSION ------- Armored Treads Medium Treads Medium Treads Improved Medium Treads > --- UTILITY ---------- Coolant Injector Huge Storage Unit Makeshift ECM Suite Hardened Heavy Armor Plating Hacking Suite Hacking Suite > --- WEAPON ----------- Plasma Cannon Precision Assault Rifle > --- INVENTORY -------- Light Nuclear Core Light Fission Core Power Amplifier Improved Cooling System Coolant Injector High-capacity Storage Unit Compact Battery Makeshift Salvage Targeting Computer Particle Charger Makeshift Hacking Suite Makeshift Hacking Suite Authchip [R/Combat] Authchip [R/Combat] Authchip [R/Combat] Lightning Gun Arc Projector Beamcaster Plasma Cannon Heavy Plasma Cannon Rocket Launcher Improved Grenade Launcher Improved Grenade Launcher Improved Grenade Launcher Improved Grenade Launcher Remote Datajack [Rating: 62] Favorites ----------- Power Deuterium Engine Engine Deuterium Engine Power Core Light Nuclear Core Propulsion Carbon-fiber Leg Treads Light Treads Leg Carbon-fiber Leg Wheel Wheel Hover Unit Backup Propulsion III Flight Unit Impulse Thruster Utility Hacking Suite Device Coolant Injector Storage Huge Storage Unit Processor Improved Targeting Computer Hackware Hacking Suite Protection Light Armor Plating Weapon Plasma Cannon Energy Gun Spread Laser Energy Cannon Plasma Cannon Ballistic Gun Light Assault Rifle Ballistic Cannon Light Cannon Launcher Improved Grenade Launcher Special Weapon Remote Datajack Slashing Weapon Makeshift Sword Piercing Weapon Vortex Lance Special Melee Weapon Dirty Datajack Build | -11 -10 -9 -9 -9 -8 -8 -7 -7 -7 -7 -6 -6 -6 -6 -6 -5 -4 -4 -4 -4 -3 ------- Run | Yrd Mat Mat Min Exi Min Mat Fac Low Low Zio Pro Fac Was Fac DSF Fac Fac Upp Upp War Pro Slots Evolved 12 | . . 2 . . . 2 2 . . . . 2 . . . 2 2 . . . . Power 1 | . . . . . . . 1 . . . . . . . . . . . . . . Propulsion 6 | . . . . . . 2 . . . . . . . . . 2 2 . . . . Utility 5 | . . 2 . . . . 1 . . . . 2 . . . . . . . . . Weapon . | . . . . . . . . . . . . . . . . . . . . . . Parts Attached 117 | 9 3 33 1 1 2 21 4 7 2 8 7 9 . . 1 3 1 . . 5 . Power 17 | 1 . 5 . . 1 3 1 . 1 2 1 1 . . . 1 . . . . . Engine 12 | 1 . 5 . . . 3 1 . 1 1 . . . . . . . . . . . Core 5 | . . . . . 1 . . . . 1 1 1 . . . 1 . . . . . Reactor . | . . . . . . . . . . . . . . . . . . . . . . Propulsion 28 | 4 . 6 1 . . 5 . 4 1 . 3 1 . . 1 1 1 . . . . Treads 14 | 2 . 4 1 . . 2 . . . . 3 1 . . . 1 . . . . . Leg 6 | . . . . . . . . 4 1 . . . . . 1 . . . . . . Wheel 7 | 2 . 2 . . . 3 . . . . . . . . . . . . . . . Hover . | . . . . . . . . . . . . . . . . . . . . . . Flight 1 | . . . . . . . . . . . . . . . . . 1 . . . . Utility 32 | 2 2 7 . 1 . 7 2 1 . 4 1 5 . . . . . . . . . Device 13 | 1 . 2 . 1 . 2 . 1 . 3 1 2 . . . . . . . . . Storage 7 | 1 1 . . . . 2 . . . 1 . 2 . . . . . . . . . Processor 3 | . 1 1 . . . 1 . . . . . . . . . . . . . . . Hackware 2 | . . . . . . 2 . . . . . . . . . . . . . . . Protection 7 | . . 4 . . . . 2 . . . . 1 . . . . . . . . . Artifact . | . . . . . . . . . . . . . . . . . . . . . . Weapon 40 | 2 1 15 . . 1 6 1 2 . 2 2 2 . . . 1 . . . 5 . Energy Gun 13 | 1 . 8 . . 1 . 1 . . . . . . . . . . . . 2 . Energy Cannon 8 | . . 2 . . . 2 . 2 . . . 1 . . . . . . . 1 . Ballistic Gun 5 | 1 . 2 . . . . . . . . . 1 . . . 1 . . . . . Ballistic Cannon 1 | . 1 . . . . . . . . . . . . . . . . . . . . Launcher 9 | . . 3 . . . 4 . . . . 2 . . . . . . . . . . Special Weapon 1 | . . . . . . . . . . 1 . . . . . . . . . . . Impact Weapon . | . . . . . . . . . . . . . . . . . . . . . . Slashing Weapon 1 | . . . . . . . . . . 1 . . . . . . . . . . . Piercing Weapon 1 | . . . . . . . . . . . . . . . . . . . . 1 . Special Melee Weapon 1 | . . . . . . . . . . . . . . . . . . . . 1 . Unidentified Prototypes 7 | . . 2 . . . . . . . 1 . 1 . . . . . . . 3 . Corrupted Parts 3 | . . . . . . 1 . . . . 2 . . . . . . . . . . System Corruption 11 | . . . . . . 3 . . . . 8 . . . . . . . . . . Parts Lost 71 | . 2 21 . . 2 12 . 5 1 . 5 16 2 . . . 1 . . 4 . Power 12 | . . 2 . . 1 3 . . 1 . 1 4 . . . . . . . . . Propulsion 19 | . . 4 . . . 3 . 2 . . 3 4 . . . . 1 . . 2 . Utility 21 | . 1 7 . . 1 2 . 1 . . 1 4 2 . . . . . . 2 . Weapon 19 | . 1 8 . . . 4 . 2 . . . 4 . . . . . . . . . Highest Loss Streak 8 | . 2 4 . . 2 6 . 2 1 . 3 8 2 . . . 1 . . 4 . To Critical Strikes 1 | . . . . . . . . . . . . 1 . . . . . . . . . Average Backups 17 | 4 6 12 19 21 19 19 23 24 24 24 22 23 5 5 5 4 4 4 4 4 5 Power 1 | 1 1 1 2 2 1 2 2 2 3 2 1 1 . . . . . . . . . Propulsion 1 | 1 1 3 1 1 1 . . . 1 . . . . . . . 1 1 1 1 1 Utility 5 | . 2 1 2 3 3 5 8 7 7 9 11 11 2 2 2 2 1 1 1 . . Weapon 7 | . 1 4 12 14 12 10 11 11 11 11 7 8 2 2 1 1 1 1 1 1 2 Tool/Special . | . . . . . . . . . . . . . . . . . . . . . . Unused Backups 31 | . . . . . . 1 . . . 4 2 13 1 . 3 3 1 . . 2 1 Power . | . . . . . . . . . . . . . . . . . . . . . . Propulsion 1 | . . . . . . 1 . . . . . . . . . . . . . . . Utility 16 | . . . . . . . . . . 2 . 9 1 . 1 1 1 . . 1 . Weapon 13 | . . . . . . . . . . 2 1 4 . . 2 2 . . . 1 1 Tool/Special 1 | . . . . . . . . . . . 1 . . . . . . . . . . Average Slot Usage (%) 77 | . 98 77 76 58 83 80 99 94 91 93 99 84 14 . 2 13 2 . . 33 . Engine 9 | . 14 10 11 11 6 5 15 15 14 13 9 4 . . . . . . . 8 . Core 1 | . . . . . 3 2 . . . 1 4 4 . . . 2 . . . . . Treads 7 | . 19 11 10 11 11 10 7 1 . . 11 19 . . . 2 . . . . . Leg 9 | . . . . . . . . 22 30 30 17 1 . . 2 4 . . . . . Wheel 5 | . 8 10 11 11 11 20 23 3 . . . . . . . . . . . . . Device 7 | . 9 4 . . 11 11 7 7 7 11 14 13 4 . . . . . . . . Storage 8 | . 14 11 11 11 11 9 7 7 7 10 7 6 . . . . . . . . . Processor 2 | . 4 4 11 11 6 3 . . . . . . . . . . . . . . . Hackware 7 | . . . . . . 2 15 15 15 15 15 13 9 . . . . . . . . Protection 2 | . . 5 . . . . 6 5 . . . 5 . . . . . . . 8 . Energy Gun 4 | . 9 8 22 2 22 5 . . . . . . . . . . . . . 5 . Energy Cannon 4 | . . 3 . . . 2 7 13 15 2 14 8 . . . . . . . . . Ballistic Gun 1 | . 14 5 . . . . . . . . . . . . . 2 . . . . . Launcher 1 | . . . . . . 6 6 . . . . 3 . . . . . . . . . Special Weapon 1 | . . . . . . . . . . 6 . . . . . . . . . . . Peak Build Rating 62 | 7 8 16 16 18 18 36 41 45 44 50 49 62 13 2 6 24 8 1 1 38 3 Average Rating 29 | 5 7 12 15 12 17 25 39 42 43 44 48 54 9 2 3 14 4 1 1 23 3 On Entrance 16 | . 7 8 15 15 18 17 32 41 44 44 49 49 12 2 2 6 2 1 1 1 3 Naked Turns 657 | . . . . . . . . . . . . . 13 7 53 24 73 98 222 97 70 Heaviest Build 137 | 12 87 101 93 94 94 106 115 116 113 115 122 137 1 . . 10 . . . 14 . Greatest Support 106 | 40 40 46 20 10 10 32 32 60 60 60 76 106 3 3 18 18 7 3 3 16 3 Greatest Overweight (x) 32 | . 4 10 9 9 9 9 3 11 1 1 2 32 . . . . . . . 1 . Average Overweight (x) 2 | . 1 6 8 8 8 3 3 1 1 1 1 1 . . . . . . . . . Largest Inventory Capacity 25 | 8 25 25 25 25 25 25 25 25 25 25 25 25 5 5 5 5 5 5 5 5 5 Average Capacity 21 | 7 13 25 25 25 25 23 25 25 25 25 25 24 5 5 5 5 5 5 5 5 5 Most Carried 25 | 6 8 19 21 22 20 25 25 25 25 25 25 25 5 5 5 5 5 4 4 5 5 Average Carried 17 | 4 6 12 19 21 19 19 23 24 24 24 23 23 5 5 4 4 4 4 4 4 5 Final Capacity 25 | 8 25 25 25 25 25 25 25 25 25 25 25 5 5 5 5 5 5 5 5 5 5 Final Carried 25 | 5 7 19 20 20 18 25 24 24 25 25 22 5 5 5 5 5 4 4 4 5 5 Class Distribution -------------------- 49% | Mutant 40% | Scavenger-Mutant 10% | Hacker-Mutant Dominant Class ---------------- Mutant | -10/Materials Mutant | -9/Materials Mutant | -9/Mines Mutant | -9/Exiles Mutant | -8/Mines Mutant | -8/Materials Hacker-Mutant | -7/Factory Scavenger-Mutant | -7/Lower Caves Scavenger-Mutant | -7/Lower Caves Scavenger-Mutant | -7/Zion Scavenger-Mutant | -6/Proximity Caves Hacker-Mutant | -6/Factory Mutant | -6/Waste Mutant | -6/Factory Mutant | -6/DSF Mutant | -5/Factory Mutant | -4/Factory Mutant | -4/Upper Caves Mutant | -4/Upper Caves Mutant | -4/Warlord Mutant | -3/Proximity Caves Resources | -11 -10 -9 -9 -9 -8 -8 -7 -7 -7 -7 -6 -6 -6 -6 -6 -5 -4 -4 -4 -4 -3 ----------- Run | Yrd Mat Mat Min Exi Min Mat Fac Low Low Zio Pro Fac Was Fac DSF Fac Fac Upp Upp War Pro Matter Collected 2983 | 294 23 1146 34 . 26 512 68 203 26 170 166 104 . . 31 . 3 109 68 . . Remotely . | . . . . . . . . . . . . . . . . . . . . . . Salvage Created 5931 | 101 247 2070 112 . 26 1198 168 515 93 . 591 810 . . . . . . . . . Parts 368 | 13 21 135 11 . . 83 12 18 4 . 14 57 . . . . . . . . . Haulers Intercepted 4 | . . 2 . . . 1 . . . . . 1 . . . . . . . . . Recyclers Shooed 1 | . . . . . . . . . . . . 1 . . . . . . . . . Parts Field Recycled . | . . . . . . . . . . . . . . . . . . . . . . Retrieved Matter . | . . . . . . . . . . . . . . . . . . . . . . Parts Self-Destructed 45 | . . . . . . . . 9 2 2 32 . . . . . . . . . . Prevented 6 | . . . . . . . . 1 1 . 4 . . . . . . . . . . Kills | -11 -10 -9 -9 -9 -8 -8 -7 -7 -7 -7 -6 -6 -6 -6 -6 -5 -4 -4 -4 -4 -3 ------- Run | Yrd Mat Mat Min Exi Min Mat Fac Low Low Zio Pro Fac Was Fac DSF Fac Fac Upp Upp War Pro Combat Hostiles Destroyed 121 | . 6 46 3 . 1 24 4 10 2 . 11 14 . . . . . . . . . Guns 35 | . 5 19 3 . 1 7 . . . . . . . . . . . . . . . Cannons 44 | . 1 11 . . . 9 . 8 2 . 6 7 . . . . . . . . . AOE 38 | . . 15 . . . 7 4 1 . . 4 7 . . . . . . . . . Classes Destroyed 16 | 2 4 6 . . 1 . . . . . 2 1 . . . . . . . . . Worker 15 | 1 . 6 . . . 1 1 . . . . 6 . . . . . . . . . Builder 11 | . 1 1 . . . 5 . . . . . 4 . . . . . . . . . Tunneler 8 | 4 . . 2 . . . . . . . . 2 . . . . . . . . . Hauler 4 | . . 2 . . . 1 . . . . . 1 . . . . . . . . . Recycler 3 | . . 2 . . . . . . . . . 1 . . . . . . . . . Mechanic 1 | . . . . . . . . . . . . 1 . . . . . . . . . Operator 5 | . . 3 . . . 1 . . . . . 1 . . . . . . . . . Watcher 9 | . 2 5 . . . . . . . . . 2 . . . . . . . . . Swarmer 27 | . 3 10 . . . 3 3 3 . . 1 4 . . . . . . . . . Grunt 59 | . 3 25 2 . . 14 . 2 1 . 8 4 . . . . . . . . . Brawler 5 | . . 2 . . . 3 . . . . . . . . . . . . . . . Duelist 3 | . . 2 1 . . . . . . . . . . . . . . . . . . Sentry 15 | . . 7 . . . 4 1 1 . . . 2 . . . . . . . . . Hunter 2 | . . . . . 1 . . . 1 . . . . . . . . . . . . Programmer 6 | . . . . . . . . . . . 2 4 . . . . . . . . . Thug 4 | . . . . . . . . 4 . . . . . . . . . . . . . Mutant 1 | . . . . . . . . . . . 1 . . . . . . . . . . Best Kill Streak 12 | 2 3 6 3 . 1 9 3 4 1 . 3 12 . . . . . . . . . Combat Bots Only 9 | . 3 5 3 . 1 9 3 4 1 . 3 4 . . . . . . . . . Max Kills in Single Turn 5 | 1 1 5 1 . 1 3 3 1 1 . 4 3 . . . . . . . . . Gunslinging 1 | . . . . . . 1 . . . . . . . . . . . . . . . Exploded 4 | . . 4 . . . 1 3 1 . . 3 2 . . . . . . . . . Melee . | . . . . . . . . . . . . . . . . . . . . . . Uniques/NPCs Destroyed . | . . . . . . . . . . . . . . . . . . . . . . Combat | -11 -10 -9 -9 -9 -8 -8 -7 -7 -7 -7 -6 -6 -6 -6 -6 -5 -4 -4 -4 -4 -3 -------- Run | Yrd Mat Mat Min Exi Min Mat Fac Low Low Zio Pro Fac Was Fac DSF Fac Fac Upp Upp War Pro Hostile Shots Fired 963 | . 43 246 6 . 10 122 21 68 9 . 54 228 3 . 14 27 24 10 . 54 24 Missed 305 | . 6 79 1 . 3 36 7 15 4 . 14 74 1 . 7 12 14 6 . 16 10 Hits 658 | . 37 167 5 . 7 86 14 53 5 . 40 154 2 . 7 15 10 4 . 38 14 Melee 11 | . . 8 1 . . . . . . . . . 2 . . . . . . . . Projectile 647 | . 37 159 4 . 7 86 14 53 5 . 40 154 . . 7 15 10 4 . 38 14 Critical Strikes 23 | . . 4 1 . . 2 . 2 . . 2 6 2 . . . 2 . . 2 . Damage Taken 10691 | 28 437 2269 76 . 119 1428 145 837 68 . 864 2358 84 . 296 170 238 78 . 959 237 Core 2867 | 14 69 223 . . 23 180 . 107 10 . 115 537 84 . 205 138 198 78 . 649 237 Absorbed by Shields 50 | . . . . . . . . . . . . . . . 50 . . . . . . Ignored by Resistances 20 | . . . . . . . . . . . . 20 . . . . . . . . . Core Remaining (%) 59 | 94 66 . . . 38 67 . . . . 66 . . . 2 86 . . . . . Volleys Fired 423 | 14 27 156 9 . 5 68 4 29 7 8 28 65 . . . . . . . 3 . Largest 2 | 2 2 2 2 . 2 2 2 2 2 1 2 2 . . . . . . . 1 . Hottest 160 | 60 60 130 130 . 130 130 116 160 160 5 160 160 . . . . . . . 5 . Shots Fired 676 | 28 52 251 17 . 10 94 8 54 14 8 52 85 . . . . . . . 3 . Gun 304 | 28 43 172 17 . 10 34 . . . . . . . . . . . . . . . Cannon 289 | . 9 67 . . . 36 4 52 14 . 45 62 . . . . . . . . . Launcher 72 | . . 12 . . . 24 4 2 . . 7 23 . . . . . . . . . Special 11 | . . . . . . . . . . 8 . . . . . . . . . 3 . Kinetic 179 | 14 36 129 . . . . . . . . . . . . . . . . . . . Thermal 325 | . . 51 17 . 10 70 4 52 14 . 45 62 . . . . . . . . . Explosive 42 | . . 12 . . . . . . . . 7 23 . . . . . . . . . Electromagnetic 119 | 14 16 59 . . . 24 4 2 . . . . . . . . . . . . . Robot Hit Streak 13 | 5 6 10 9 . 7 13 4 4 3 4 9 10 . . . . . . . 9 . Robot Miss Streak 9 | 2 5 9 2 . 4 9 3 5 2 2 4 9 . . . . . . . . . Penetration Max . | . . . . . . . . . . . . . . . . . . . . . . Secondary Targets 5 | . 1 1 . . . 3 . . . . . . . . . . . . . . . Max Gunslinging Chain 1 | . 1 1 . . . 1 . . . . . . . . . . . . . . . Shots Hit Robots 409 | 18 28 153 14 . 10 70 4 26 7 5 30 41 . . . . . . . 3 . Core Hits 349 | 6 13 117 23 . 8 82 7 16 4 . 25 47 . . . 1 . . . . . Critical Kills 4 | . . 1 . . . 1 . 1 . . 1 . . . . . . . . . . Critical Parts Destroyed 1 | . . 1 . . . . . . . . . . . . . . . . . . . Critical Strikes 6 | . . 3 . . . 1 . 1 . . 1 . . . . . . . . . . Meltdown 4 | . . 1 . . . 1 . 1 . . 1 . . . . . . . . . . Destroy 1 | . . 1 . . . . . . . . . . . . . . . . . . . Corrupt 1 | . . 1 . . . . . . . . . . . . . . . . . . . Melee Attacks . | . . . . . . . . . . . . . . . . . . . . . . Impact . | . . . . . . . . . . . . . . . . . . . . . . Slashing . | . . . . . . . . . . . . . . . . . . . . . . Piercing . | . . . . . . . . . . . . . . . . . . . . . . Sneak Attacks . | . . . . . . . . . . . . . . . . . . . . . . Combat Hostiles . | . . . . . . . . . . . . . . . . . . . . . . Follow-up Attacks . | . . . . . . . . . . . . . . . . . . . . . . Damage Inflicted 12497 | 219 403 3478 219 . 111 2161 188 731 180 . 1222 3542 . . . 9 30 . . 4 . Guns 2867 | 179 274 1644 219 . 111 440 . . . . . . . . . . . . . . . Cannons 4180 | . 77 817 . . . 537 52 648 180 . 789 1080 . . . . . . . . . Explosions 5403 | 40 52 1013 . . . 1184 136 83 . . 433 2462 . . . . . . . . . Melee . | . . . . . . . . . . . . . . . . . . . . . . Ramming 47 | . . 4 . . . . . . . . . . . . . 9 30 . . 4 . Kinetic 1379 | 66 184 1129 . . . . . . . . . . . . . . . . . . . Thermal 4866 | 40 52 568 219 . 111 1127 52 648 180 . 789 1080 . . . . . . . . . Explosive 3831 | . . 936 . . . . . . . . 433 2462 . . . . . . . . . Electromagnetic 2374 | 113 167 841 . . . 1034 136 83 . . . . . . . . . . . . . Impact . | . . . . . . . . . . . . . . . . . . . . . . Slashing . | . . . . . . . . . . . . . . . . . . . . . . Piercing . | . . . . . . . . . . . . . . . . . . . . . . Highest Corruption 9 | . . 9 9 9 9 9 . . . . 8 5 8 8 8 . . . . . . Average Corruption 7 | . . 8 9 9 9 7 . . . . 7 2 7 8 8 . . . . . . Corruption Purged . | . . . . . . . . . . . . . . . . . . . . . . Corruption Blocked . | . . . . . . . . . . . . . . . . . . . . . . Effects 194 | . . 98 15 23 9 12 . . . . 16 16 2 . 3 . . . . . . Message Errors 47 | . . 21 3 6 3 3 . . . . 5 5 1 . . . . . . . . Matter Fused 42 | . . 23 2 5 2 4 . . . . 1 3 . . 2 . . . . . . Heat Flow Errors 14 | . . 7 1 3 2 . . . . . . 1 . . . . . . . . . Energy Discharges 31 | . . 20 1 2 1 3 . . . . 2 2 . . . . . . . . . Parts Rejected 2 | . . 2 . . . . . . . . . . . . . . . . . . . Parts Fused 1 | . . . . . . . . . . . 1 . . . . . . . . . . Data Loss (minor) 33 | . . 12 4 4 1 2 . . . . 6 2 1 . 1 . . . . . . Data Loss (major) 8 | . . 3 1 3 . . . . . . . 1 . . . . . . . . . Misfires 6 | . . 4 1 . . . . . . . 1 . . . . . . . . . . Alerts 2 | . . 1 . . . . . . . . . 1 . . . . . . . . . Weapon Failures 8 | . . 5 2 . . . . . . . . 1 . . . . . . . . . Overload Shots . | . . . . . . . . . . . . . . . . . . . . . . Overflow Damage 194 | . . 42 . . . 13 . . . . 6 133 . . . . . . . . . Projectiles 67 | . . 23 . . . 1 . . . . . 43 . . . . . . . . . Explosions 127 | . . 19 . . . 12 . . . . 6 90 . . . . . . . . . Melee . | . . . . . . . . . . . . . . . . . . . . . . Knockbacks . | . . . . . . . . . . . . . . . . . . . . . . Impact . | . . . . . . . . . . . . . . . . . . . . . . Kinetic . | . . . . . . . . . . . . . . . . . . . . . . Secondary . | . . . . . . . . . . . . . . . . . . . . . . Self-Inflicted Damage 586 | 29 44 158 . . . 114 . 25 . . 99 101 . . . . 14 . . 2 . Shots 21 | 1 1 6 . . . 6 . 2 . . 2 3 . . . . . . . . . Rammed 5 | . . 1 . . . . . . . . . . . . . . 3 . . 1 . Targets Rammed 11 | . . 1 . . . . . . . . . . . . . 6 3 . . 1 . Kicked 6 | . . . . . . . . . . . . . . . . 6 . . . . . Crushed . | . . . . . . . . . . . . . . . . . . . . . . Highest Temperature 589 | 40 109 296 339 246 395 589 183 199 199 . 199 202 . . . . . . . . . Average Temperature 97 | 19 29 58 129 102 166 201 81 121 121 . 108 102 . . . . . . . . . Received Heat Transfer 3262 | . 126 744 24 . . 675 30 363 18 . 346 783 . . . . 9 30 . 96 18 Effects 16 | . . . 2 . 5 9 . . . . . . . . . . . . . . . Shutdowns 3 | . . . 1 . 1 1 . . . . . . . . . . . . . . . Energy Bleed 1 | . . . 1 . . . . . . . . . . . . . . . . . . Interference 6 | . . . . . 2 4 . . . . . . . . . . . . . . . Matter Decay 1 | . . . . . . 1 . . . . . . . . . . . . . . . Short Circuit 2 | . . . . . 1 1 . . . . . . . . . . . . . . . Damage (minor) 2 | . . . . . 1 1 . . . . . . . . . . . . . . . Damage (core) 1 | . . . . . . 1 . . . . . . . . . . . . . . . Siege Activations . | . . . . . . . . . . . . . . . . . . . . . . Martial Activations . | . . . . . . . . . . . . . . . . . . . . . . Shielding Activations . | . . . . . . . . . . . . . . . . . . . . . . Robots Disrupted . | . . . . . . . . . . . . . . . . . . . . . . Combat Hostiles . | . . . . . . . . . . . . . . . . . . . . . . Robots Corrupted . | . . . . . . . . . . . . . . . . . . . . . . Combat Hostiles . | . . . . . . . . . . . . . . . . . . . . . . Parts Fried 10 | . . 3 . . . 7 . . . . . . . . . . . . . . . Impact Corruptions . | . . . . . . . . . . . . . . . . . . . . . . Robots Melted 4 | . . 1 . . . 1 . 1 . . 1 . . . . . . . . . . Combat Hostiles 4 | . . 1 . . . 1 . 1 . . 1 . . . . . . . . . . Parts Melted 16 | . . 3 . . . 2 . 2 . . 4 5 . . . . . . . . . Heat Transferred 8495 | 50 50 915 275 . 130 1875 100 1300 350 . 1500 1950 . . . . . . . . . Parts Sabotaged . | . . . . . . . . . . . . . . . . . . . . . . Parts Stolen . | . . . . . . . . . . . . . . . . . . . . . . Parts Stripped . | . . . . . . . . . . . . . . . . . . . . . . Power Chain Reactions 8 | 1 1 2 . . . 3 1 . . . . . . . . . . . . . . Alert | -11 -10 -9 -9 -9 -8 -8 -7 -7 -7 -7 -6 -6 -6 -6 -6 -5 -4 -4 -4 -4 -3 ------- Run | Yrd Mat Mat Min Exi Min Mat Fac Low Low Zio Pro Fac Was Fac DSF Fac Fac Upp Upp War Pro Maximum Alert Level 2 | . . 2 1 . . 1 1 . . . . 1 . . . . 1 . . . . Low Security (%) 63 | 100 100 18 75 . 100 77 66 . . . . 98 100 100 100 100 88 . . . . Level 1 13 | . . 22 24 . . 22 33 . . . . 1 . . . . 11 . . . . Level 2 23 | . . 59 . . . . . . . . . . . . . . . . . . . Level 3 . | . . . . . . . . . . . . . . . . . . . . . . Level 4 . | . . . . . . . . . . . . . . . . . . . . . . Level 5 . | . . . . . . . . . . . . . . . . . . . . . . High Security . | . . . . . . . . . . . . . . . . . . . . . . Max Security . | . . . . . . . . . . . . . . . . . . . . . . Peak Influence 689 | 5 87 689 242 . 30 319 277 . . . . 214 45 3 32 16 259 . . . . Initial 242 | . 3 15 242 . . . 137 . . . . 80 45 3 2 16 . . . . . Average 203 | 1 35 426 164 . 2 105 178 . . . . 44 30 3 10 1 41 . . . . Influence Increases 4668 | 25 218 1480 80 . 30 695 210 155 50 . 654 590 . . 30 . 301 105 . 45 . Destroy 0b10 Robot/C 2700 | . 120 920 60 . 20 480 80 120 40 . 480 280 . . . . 100 . . . . Destroy 0b10 Robot/NC 280 | 25 15 95 10 . . 40 5 . . . . 90 . . . . . . . . . Destroy Leader 596 | . 34 224 10 . 10 122 20 20 10 . 50 86 . . . . 10 . . . . Allied During Kill 147 | . . . . . . . . . . . 124 . . . . . 23 . . . . Successful Hack 60 | . 12 18 . . . . 30 . . . . . . . . . . . . . . Disable Machine 210 | . 30 60 . . . 30 60 . . . . 30 . . . . . . . . . Destroy Structure 285 | . 7 88 . . . 23 15 . . . . 104 . . . . 48 . . . . Partial Spotted 30 | . . . . . . . . . . . . . . . . . 30 . . . . Lose Combat Pursuer 360 | . . 75 . . . . . 15 . . . . . . 30 . 90 105 . 45 . Influence Decreases 4668 | 20 186 895 578 124 30 392 246 422 50 . 526 588 125 2 1 32 80 123 150 98 . Entered New Map 1122 | . 2 22 380 124 . . 166 100 . . . 48 85 2 1 16 . 83 40 53 . Time Decay 2797 | 20 164 663 198 . 30 292 80 272 50 . 416 380 20 . . 16 30 40 110 16 . Lost Part 649 | . 20 210 . . . 100 . 50 . . 50 160 20 . . . 10 . . 29 . Lost Ally 100 | . . . . . . . . . . . 60 . . . . . 40 . . . . Squads Dispatched 25 | . 1 8 . . . 6 1 . . . 1 6 . . . 2 . . . . . Investigation 8 | . . 2 . . . 3 . . . . 1 1 . . . 1 . . . . . Extermination 4 | . . . . . . . . . . . . 3 . . . 1 . . . . . Reinforcement 10 | . 1 4 . . . 2 1 . . . . 2 . . . . . . . . . Assault 2 | . . 2 . . . . . . . . . . . . . . . . . . . Garrison 1 | . . . . . . 1 . . . . . . . . . . . . . . . Intercept . | . . . . . . . . . . . . . . . . . . . . . . Searches Triggered . | . . . . . . . . . . . . . . . . . . . . . . Construction Impeded 3 | . . . . . . 1 1 . . . . 1 . . . . . . . . . Haulers Reinforced 1 | . . . . . . . . . . . . 1 . . . . . . . . . Active Scanning Responses . | . . . . . . . . . . . . . . . . . . . . . . Cargo Convoy Interrupts . | . . . . . . . . . . . . . . . . . . . . . . Stealth | -11 -10 -9 -9 -9 -8 -8 -7 -7 -7 -7 -6 -6 -6 -6 -6 -5 -4 -4 -4 -4 -3 --------- Run | Yrd Mat Mat Min Exi Min Mat Fac Low Low Zio Pro Fac Was Fac DSF Fac Fac Upp Upp War Pro Distress Signals 5 | . . 3 . . . 1 . . . . . . . . . 1 . . . . . Communications Jammed . | . . . . . . . . . . . . . . . . . . . . . . Distress Signals . | . . . . . . . . . . . . . . . . . . . . . . Times Spotted 253 | . 10 71 3 . 1 30 3 10 2 . 21 30 6 . 2 2 13 7 1 31 10 Peak Tracking Total 19 | . 3 5 3 . 1 7 3 4 1 . 8 4 6 . 1 3 10 5 1 19 10 Tactical Retreats 22 | . . 5 . . . . . 1 . . 4 5 . . 2 . 1 2 . 2 . Traps | -11 -10 -9 -9 -9 -8 -8 -7 -7 -7 -7 -6 -6 -6 -6 -6 -5 -4 -4 -4 -4 -3 ------- Run | Yrd Mat Mat Min Exi Min Mat Fac Low Low Zio Pro Fac Was Fac DSF Fac Fac Upp Upp War Pro Traps Triggered 11 | . . 3 . . . 3 . . . . . 1 . . 3 1 . . . . . Indirectly 1 | . . . . . . 1 . . . . . . . . . . . . . . . Trap Hack Attempts . | . . . . . . . . . . . . . . . . . . . . . . Triggered . | . . . . . . . . . . . . . . . . . . . . . . Disarmed . | . . . . . . . . . . . . . . . . . . . . . . Reprogrammed . | . . . . . . . . . . . . . . . . . . . . . . Reused . | . . . . . . . . . . . . . . . . . . . . . . Traps Extracted . | . . . . . . . . . . . . . . . . . . . . . . Installed . | . . . . . . . . . . . . . . . . . . . . . . Triggered . | . . . . . . . . . . . . . . . . . . . . . . Machines | -11 -10 -9 -9 -9 -8 -8 -7 -7 -7 -7 -6 -6 -6 -6 -6 -5 -4 -4 -4 -4 -3 ---------- Run | Yrd Mat Mat Min Exi Min Mat Fac Low Low Zio Pro Fac Was Fac DSF Fac Fac Upp Upp War Pro Machines Disabled 16 | . 2 4 . . . 2 4 . . . 2 2 . . . . . . . . . Max in Single Turn 4 | . 1 1 . . . 2 4 . . . 1 1 . . . . . . . . . Garrison Access 3 | . . . . . . 1 1 . . . . 1 . . . . . . . . . Machines Repaired . | . . . . . . . . . . . . . . . . . . . . . . Machines Dismantled . | . . . . . . . . . . . . . . . . . . . . . . Machines Sabotaged . | . . . . . . . . . . . . . . . . . . . . . . Overloaded Fab Kills . | . . . . . . . . . . . . . . . . . . . . . . Hacking | -11 -10 -9 -9 -9 -8 -8 -7 -7 -7 -7 -6 -6 -6 -6 -6 -5 -4 -4 -4 -4 -3 --------- Run | Yrd Mat Mat Min Exi Min Mat Fac Low Low Zio Pro Fac Was Fac DSF Fac Fac Upp Upp War Pro Machines Accessed 28 | . 2 6 . 2 . 2 3 . . . 1 3 . 1 . 3 . . . 5 . Terminals 11 | . 2 4 . . . 1 2 . . . 1 . . 1 . . . . . . . Fabricators . | . . . . . . . . . . . . . . . . . . . . . . Repair Stations 2 | . . . . . . . . . . . . 1 . . . 1 . . . . . Recycling Units 4 | . . 2 . . . . . . . . . 1 . . . 1 . . . . . Scanalyzers . | . . . . . . . . . . . . . . . . . . . . . . Garrison Access 4 | . . . . . . 1 1 . . . . 1 . . . 1 . . . . . Total Hacks 56 | . 8 12 . 2 . 4 4 . . . 3 7 . 2 . 5 . . . 9 . Successful 33 | . 3 6 . 2 . 2 4 . . . 3 3 . 1 . . . . . 9 . Failed 23 | . 5 6 . . . 2 . . . . . 4 . 1 . 5 . . . . . Catastrophic 4 | . 1 1 . . . . . . . . . . . . . 2 . . . . . Database Lockouts . | . . . . . . . . . . . . . . . . . . . . . . Manual 30 | . 6 7 . . . 1 1 . . . . 12 . . . . 3 . . . . Terminals 28 | . 8 9 . . . 3 3 . . . 3 . . 2 . . . . . . . Fabricators . | . . . . . . . . . . . . . . . . . . . . . . Repair Stations 4 | . . . . . . . . . . . . 2 . . . 2 . . . . . Recycling Units 9 | . . 3 . . . . . . . . . 4 . . . 2 . . . . . Scanalyzers . | . . . . . . . . . . . . . . . . . . . . . . Garrison Access 4 | . . . . . . 1 1 . . . . 1 . . . 1 . . . . . Terminal Hacks 25 | . 2 4 . 2 . 1 3 . . . 3 . . 1 . . . . . 9 . Record 12 | . . . . 2 . . . . . . 3 . . . . . . . . 7 . Open Door 2 | . . . . . . . . . . . . . . . . . . . . 2 . Open DSF 2 | . . . . . . . 1 . . . . . . 1 . . . . . . . Branch Access Points 2 | . . . . . . 1 1 . . . . . . . . . . . . . . Registered Components 3 | . 1 1 . . . . 1 . . . . . . . . . . . . . . Zone Layout 4 | . 1 3 . . . . . . . . . . . . . . . . . . . Fabricator Hacks . | . . . . . . . . . . . . . . . . . . . . . . Repair Station Hacks . | . . . . . . . . . . . . . . . . . . . . . . Recycling Unit Hacks 4 | . . 2 . . . . . . . . . 2 . . . . . . . . . Report Inventory 3 | . . 2 . . . . . . . . . 1 . . . . . . . . . Retrieve Components 1 | . . . . . . . . . . . . 1 . . . . . . . . . Scanalyzer . | . . . . . . . . . . . . . . . . . . . . . . Garrison Access Hacks 3 | . . . . . . 1 1 . . . . 1 . . . . . . . . . Seal Access 3 | . . . . . . 1 1 . . . . 1 . . . . . . . . . Unauthorized Hacks 1 | . 1 . . . . . . . . . . . . . . . . . . . . Terminals 1 | . 1 . . . . . . . . . . . . . . . . . . . . Botnet 1 | . 1 . . . . . . . . . . . . . . . . . . . . Fabricators . | . . . . . . . . . . . . . . . . . . . . . . Repair Stations . | . . . . . . . . . . . . . . . . . . . . . . Recycling Units . | . . . . . . . . . . . . . . . . . . . . . . Scanalyzers . | . . . . . . . . . . . . . . . . . . . . . . Garrison Access . | . . . . . . . . . . . . . . . . . . . . . . Data Cores Recovered . | . . . . . . . . . . . . . . . . . . . . . . Used . | . . . . . . . . . . . . . . . . . . . . . . Hacking Detections 13 | . 2 3 . . . 1 1 . . . 1 1 . 1 . 3 . . . . . Full Trace Events 4 | . . 1 . . . 1 . . . . 1 . . . . 1 . . . . . Feedback Events . | . . . . . . . . . . . . . . . . . . . . . . Feedback Blocked . | . . . . . . . . . . . . . . . . . . . . . . Robot Schematics Acquired 4 | . . . . . . . . . . . . 4 . . . . . . . . . Robots Built . | . . . . . . . . . . . . . . . . . . . . . . Authchips . | . . . . . . . . . . . . . . . . . . . . . . Time . | . . . . . . . . . . . . . . . . . . . . . . Total Robot Build Rating . | . . . . . . . . . . . . . . . . . . . . . . Part Schematics Acquired . | . . . . . . . . . . . . . . . . . . . . . . Parts Built . | . . . . . . . . . . . . . . . . . . . . . . Authchips . | . . . . . . . . . . . . . . . . . . . . . . Time . | . . . . . . . . . . . . . . . . . . . . . . Total Part Build Rating . | . . . . . . . . . . . . . . . . . . . . . . Parts Repaired . | . . . . . . . . . . . . . . . . . . . . . . Time . | . . . . . . . . . . . . . . . . . . . . . . Parts Recycled . | . . . . . . . . . . . . . . . . . . . . . . Recycled Matter . | . . . . . . . . . . . . . . . . . . . . . . Retrieved Matter . | . . . . . . . . . . . . . . . . . . . . . . Retrieved Components 10 | . . . . . . . . . . . . 10 . . . . . . . . . Parts Scanalyzed . | . . . . . . . . . . . . . . . . . . . . . . Part Schematics Acquired . | . . . . . . . . . . . . . . . . . . . . . . Parts Damaged . | . . . . . . . . . . . . . . . . . . . . . . Bothacking | -11 -10 -9 -9 -9 -8 -8 -7 -7 -7 -7 -6 -6 -6 -6 -6 -5 -4 -4 -4 -4 -3 ------------ Run | Yrd Mat Mat Min Exi Min Mat Fac Low Low Zio Pro Fac Was Fac DSF Fac Fac Upp Upp War Pro Used RIF Installer . | . . . . . . . . . . . . . . . . . . . . . . Robots Hacked 7 | . . . . . . . . . . 5 . . . . . . . . . 2 . Non-combat . | . . . . . . . . . . . . . . . . . . . . . . Combat 7 | . . . . . . . . . . 5 . . . . . . . . . 2 . Robot Hacks Applied 7 | . . . . . . . . . . 5 . . . . . . . . . 2 . parse_system 7 | . . . . . . . . . . 5 . . . . . . . . . 2 . Relay Couplers Released . | . . . . . . . . . . . . . . . . . . . . . . Fabnet Peak Effective % . | . . . . . . . . . . . . . . . . . . . . . . Robots Rewired . | . . . . . . . . . . . . . . . . . . . . . . Allies Hacked . | . . . . . . . . . . . . . . . . . . . . . . Hacks Repelled . | . . . . . . . . . . . . . . . . . . . . . . Allies | -11 -10 -9 -9 -9 -8 -8 -7 -7 -7 -7 -6 -6 -6 -6 -6 -5 -4 -4 -4 -4 -3 -------- Run | Yrd Mat Mat Min Exi Min Mat Fac Low Low Zio Pro Fac Was Fac DSF Fac Fac Upp Upp War Pro Total Allies 7 | . . . . . . . . . . 4 . . 1 . . . 2 . . . . Largest Group 4 | . . . . . . . . . . 4 4 . 1 . . . 2 . . . . Highest-Rated Group 156 | . . . . . . . . . . 156 156 . 31 . . . 100 . . . . Highest-Rated Ally 50 | . . . . . . . . . . 41 41 . 31 . . . 50 . . . . Zionite Dispatches 1 | . . . . . . . . . . . . . . . . . 1 . . . . Demo 1 | . . . . . . . . . . . . . . . . . 1 . . . . Total Orders . | . . . . . . . . . . . . . . . . . . . . . . Ally Attacks 54 | . . . . . . . . . . . 39 . 6 . . . 9 . . . . Total Damage 2009 | . . . . . . . . . . . 1344 . 104 . . . 561 . . . . Kills 18 | . . . . . . . . . . . 13 . . . . . 5 . . . . Allies Corrupted 1 | . . . . . . . . . . . . . . . . . 1 . . . . Allies Melted . | . . . . . . . . . . . . . . . . . . . . . . Intel | -11 -10 -9 -9 -9 -8 -8 -7 -7 -7 -7 -6 -6 -6 -6 -6 -5 -4 -4 -4 -4 -3 ------- Run | Yrd Mat Mat Min Exi Min Mat Fac Low Low Zio Pro Fac Was Fac DSF Fac Fac Upp Upp War Pro Active Infowar (turns) 3630 | 6 447 304 . 14 336 204 . . . . 774 1545 . . . . . . . . . Optics 446 | . 142 304 . . . . . . . . . . . . . . . . . . . Terrain 825 | . . 271 . 14 336 204 . . . . . . . . . . . . . . . Seismic 311 | 6 305 . . . . . . . . . . . . . . . . . . . . ECM 2319 | . . . . . . . . . . . 774 1545 . . . . . . . . . Robot Analysis Total . | . . . . . . . . . . . . . . . . . . . . . . Derelict Logs Recovered 7 | . . . . . . . . 1 3 1 . . . . . . . 1 1 . . Drone Launches . | . . . . . . . . . . . . . . . . . . . . . . Drone Recoveries . | . . . . . . . . . . . . . . . . . . . . . . Zionite Intel Received 2 | . . . . . . . . . . . . 2 . . . . . . . . . Guard Positions 1 | . . . . . . . . . . . . 1 . . . . . . . . . Unaware Schematics 1 | . . . . . . . . . . . . 1 . . . . . . . . . Exploration | -11 -10 -9 -9 -9 -8 -8 -7 -7 -7 -7 -6 -6 -6 -6 -6 -5 -4 -4 -4 -4 -3 ------------- Run | Yrd Mat Mat Min Exi Min Mat Fac Low Low Zio Pro Fac Was Fac DSF Fac Fac Upp Upp War Pro Turns Passed 14186 | 198 480 2941 413 598 347 778 177 777 797 2437 1005 1566 49 7 108 338 138 98 222 642 70 Spaces Moved 7702 | 99 254 944 155 295 144 359 121 374 407 1209 404 548 95 14 98 295 299 193 444 811 140 Core 1349 | 14 . . . . . . . . . . . 9 95 14 57 48 138 193 444 197 140 Treads 1304 | 79 172 289 17 . . 5 . . . . 203 539 . . . . . . . . . Legs 2390 | . . . . . . . . 285 407 1209 201 . . . 41 247 . . . . . Wheels 1884 | 6 82 655 138 295 144 354 121 89 . . . . . . . . . . . . . Hover 614 | . . . . . . . . . . . . . . . . . . . . 614 . Flight 161 | . . . . . . . . . . . . . . . . . 161 . . . . Fastest Speed 40 | 50 140 140 215 200 200 98 128 128 190 190 190 50 50 50 50 50 40 50 50 50 50 Average Speed 161 | 139 153 257 244 201 214 136 128 181 190 190 219 251 50 50 79 108 44 50 50 69 50 Slowest Speed 1650 | 160 160 480 480 215 215 410 128 245 190 190 260 1650 50 50 120 120 50 50 50 160 50 Overloaded Moves . | . . . . . . . . . . . . . . . . . . . . . . Propulsion Burnouts . | . . . . . . . . . . . . . . . . . . . . . . Robots Hopped . | . . . . . . . . . . . . . . . . . . . . . . Potential Cave-ins . | . . . . . . . . . . . . . . . . . . . . . . Cave-ins Triggered . | . . . . . . . . . . . . . . . . . . . . . . Exploration Rate (%) 47 | 5 48 79 54 70 39 46 5 57 75 91 52 18 74 1 89 7 8 40 63 94 39 Regions Visited 21 Branch Regions 11 Pre-discovered Areas 2 | . . . . . . . . . 1 1 . . . . . . . . . . . Known Exits Taken 3 | . . . . . . . 1 . . . . . . 1 . . . . 1 . . Unknown Exits Taken 15 | 1 1 1 1 1 1 1 . 1 1 1 1 . . . . 1 1 1 . 1 . Scrap Searched 14 | . . . 1 . . . . 2 1 4 2 . . . . . . 2 2 . . Spaces Dug . | . . . . . . . . . . . . . . . . . . . . . . Terrain Destroyed 330 | 5 5 103 . . . 23 13 . . . 42 139 . . . . . . . . . Melee . | . . . . . . . . . . . . . . . . . . . . . . Projectile 15 | . . . . . . 14 . . . . . 1 . . . . . . . . . AOE 315 | 5 5 103 . . . 9 13 . . . 42 138 . . . . . . . . . Terrain Rammed . | . . . . . . . . . . . . . . . . . . . . . . Walls Destroyed . | . . . . . . . . . . . . . . . . . . . . . . Machines Disabled . | . . . . . . . . . . . . . . . . . . . . . . Actions | -11 -10 -9 -9 -9 -8 -8 -7 -7 -7 -7 -6 -6 -6 -6 -6 -5 -4 -4 -4 -4 -3 --------- Run | Yrd Mat Mat Min Exi Min Mat Fac Low Low Zio Pro Fac Was Fac DSF Fac Fac Upp Upp War Pro Total 8798 | 133 297 1208 172 300 173 550 134 419 418 1351 471 652 96 13 129 312 304 193 443 890 140 Wait 292 | 2 4 16 6 . 22 69 . . . 90 21 8 . . . . . 1 . 53 . Move 7683 | 98 253 943 154 294 143 358 120 373 406 1208 403 548 94 13 97 294 299 192 443 810 140 Hop . | . . . . . . . . . . . . . . . . . . . . . . Pick Up 137 | 8 6 43 2 1 . 26 3 6 2 13 5 11 1 . 3 4 1 . . 2 . Fast Attach 17 | 4 . . . . . 1 . 1 . 4 . . . . 1 2 . . . 4 . Attach 94 | 5 2 29 1 3 2 17 4 6 1 6 5 9 . . . 1 1 . . 2 . Detach 11 | 2 . 1 . 2 . . . . . 2 . . . . . . . . . 4 . Swap 40 | . 3 13 . . . 6 2 1 1 3 6 5 . . . . . . . . . Drop 66 | . 2 6 . . 1 5 1 3 1 17 3 6 1 . 3 5 1 . . 11 . Fire 423 | 14 27 156 9 . 5 68 4 29 7 8 28 65 . . . . . . . 3 . Melee . | . . . . . . . . . . . . . . . . . . . . . . Ram 3 | . . . . . . . . . . . . . . . . . 2 . . 1 . Kick 6 | . . . . . . . . . . . . . . . . 6 . . . . . Crush 1 | . . 1 . . . . . . . . . . . . . . . . . . . Escape Stasis 25 | . . . . . . . . . . . . . . . 25 . . . . . . Rewire . | . . . . . . . . . . . . . . . . . . . . . . Trap . | . . . . . . . . . . . . . . . . . . . . . . Miscellaneous . | . . . . . . . . . . . . . . . . . . . . . . Route ------- -11/Scrapyard -10/Materials (discovered 2 exits: *Mat / [*Sub]) -9/Materials (discovered 4 exits: *Mat x2 / [*Min x2]) -9/Mines (discovered 2 exits: *Mat / *Exi) -9/Exiles -8/Mines -8/Materials (discovered 2 exits: *Fac x2) -7/Factory (discovered 2 exits: *Low x2) -7/Lower Caves -7/Lower Caves -7/Zion (discovered 2 exits: Dee / *Pro) -6/Proximity Caves -6/Factory -6/Waste -6/Factory -6/DSF -5/Factory -4/Factory -4/Upper Caves -4/Upper Caves -4/Warlord -3/Proximity Caves History --------- Turn | Location | Event 15 | -11/Scrapyard | Discovered new exit (range 16) 199 | -11/Scrapyard | Entered Materials 309 | -10/Materials | Build established: Mutant 344 | -10/Materials | Discovered new exit (range 12) 667 | -10/Materials | Discovered new exit (range 10) 679 | -10/Materials | Entered another Materials area 679 | -9/Materials | Evolved 2 slots: Utility x2 1030 | -9/Materials | Lost 3 parts (1n2u) 1254 | -9/Materials | Discovered new exit (range 16) 1541 | -9/Materials | Discovered new exit (range 5) 1590 | -9/Materials | Lost 4 parts (1p1n1u1w) 2160 | -9/Materials | Lost 4 parts (1n3w) 2174 | -9/Materials | Discovered new exit (range 17) 2279 | -9/Materials | First assault squad dispatched 2449 | -9/Materials | Core integrity fell below 50% 2478 | -9/Materials | Discovered new exit (range 15) 3620 | -9/Materials | Entered Mines 3857 | -9/Mines | Received a Rocket Launcher from a helpful Derelict 3983 | -9/Mines | Discovered new exit (range 8) 4024 | -9/Mines | Deemed a non-threat by the Exiles lab entrance 4024 | -9/Mines | Discovered new exit (range 5) 4033 | -9/Mines | Entered Exiles 4033 | -9/Exiles | Found Exiles lab abandoned 4608 | -9/Exiles | Discovered new exit (range 11) 4631 | -9/Exiles | Entered Mines 4919 | -8/Mines | Discovered new exit (range 13) 4978 | -8/Mines | Entered Materials 4978 | -8/Materials | Evolved 2 slots: Propulsion x2 5156 | -8/Materials | Build established: Scavenger-Mutant 5281 | -8/Materials | Lost 6 parts (2p2n2w) 5475 | -8/Materials | Discovered new exit (range 16) 5513 | -8/Materials | Build established: Mutant 5567 | -8/Materials | Garrison activated, responded to threat 5630 | -8/Materials | Destroyed 9 combat bots 5704 | -8/Materials | Discovered new exit (range 16) 5756 | -8/Materials | Entered Factory 5756 | -7/Factory | Evolved 2 slots: Power x1, Utility x1 5816 | -7/Factory | Discovered new exit (range 12) 5896 | -7/Factory | Identified exit to Lower Caves 5919 | -7/Factory | Build established: Hacker-Mutant 5933 | -7/Factory | Entered Lower Caves 5991 | -7/Lower Caves | Attracted the attention of an 0b10 checkpoint 6067 | -7/Lower Caves | Ambushed by wild Derelicts 6157 | -7/Lower Caves | Encountered a Warlord checkpoint 6303 | -7/Lower Caves | Learned 4 Factory zone layouts 6422 | -7/Lower Caves | Build established: Scavenger-Mutant 6691 | -7/Lower Caves | Discovered new exit (range 9) 6710 | -7/Lower Caves | Entered another Lower Caves area 7486 | -7/Lower Caves | Learned Factory emergency access door positions 7488 | -7/Lower Caves | Learned Factory trap positions 7498 | -7/Lower Caves | Discovered new exit (range 3) 7507 | -7/Lower Caves | Entered Zion 7543 | -7/Zion | Found CR-A16's Pointy Stick 7577 | -7/Zion | Given the Hacking Drone Bay 7577 | -7/Zion | Found Prototype Device 7577 | -7/Zion | Identified Hacking Drone Bay 7770 | -7/Zion | Discovered new exit (range 13) 7945 | -7/Zion | Learned Factory emergency access door positions 8175 | -7/Zion | Identified exit to Deep Caves 8859 | -7/Zion | Learned location of Warlord (-4) 9079 | -7/Zion | Visited the Megawrench Repair Shop 9168 | -7/Zion | Met Imprinter 9205 | -7/Zion | Imprinted 9207 | -7/Zion | Declared Zion's savior 9944 | -7/Zion | Entered Proximity Caves 9944 | -6/Proximity Caves | Accompanied by 4 allies 10097 | -6/Proximity Caves | Attracted the attention of an 0b10 base 10148 | -6/Proximity Caves | Lost 3 allies 10448 | -6/Proximity Caves | Lost 3 parts (3n) 10922 | -6/Proximity Caves | Discovered new exit (range 12) 10949 | -6/Proximity Caves | Entered Factory 10949 | -6/Factory | Evolved 2 slots: Utility x2 10951 | -6/Factory | Loaded intel: 86 trap records 11892 | -6/Factory | Build established: Hacker-Mutant 11922 | -6/Factory | Retrieved Zion intel report: Unaware Schematics 12098 | -6/Factory | Retrieved Zion intel report: Guard Positions 12177 | -6/Factory | Terminal network hard line cut 12374 | -6/Factory | Lost 4 parts (2n1u1w) 12505 | -6/Factory | Core integrity fell below 50% 12515 | -6/Factory | Sucked down chute 12515 | -6/Factory | Entered Waste 12516 | -6/Waste | Met a frightened Derelict 12530 | -6/Waste | EMP discharged 12538 | -6/Waste | Spotted C-40 Crusher 12539 | -6/Waste | Spotted C-40 Crusher 12540 | -6/Waste | Lost 8 parts (2p1n3u2w) 12542 | -6/Waste | Spotted C-40 Crusher 12546 | -6/Waste | Spotted C-40 Crusher 12546 | -6/Waste | Crushed by Compactor (1 part destroyed, 1 dropped) 12546 | -6/Waste | Spotted C-40 Crusher 12551 | -6/Waste | Crushed by Compactor (1 part destroyed) 12553 | -6/Waste | Spotted C-40 Crusher 12557 | -6/Waste | Discovered new exit (range 13) 12564 | -6/Waste | Entered Factory 12571 | -6/Factory | Identified exit to DSF 12571 | -6/Factory | Entered DSF 12595 | -6/DSF | Additional patrols routed to DSF 12601 | -6/DSF | Core integrity fell below 20% 12663 | -6/DSF | Discovered new exit (range 14) 12679 | -6/DSF | Entered Factory 12679 | -5/Factory | Evolved 2 slots: Propulsion x2 12815 | -5/Factory | Build established: Mutant 13011 | -5/Factory | Discovered new exit (range 13) 13017 | -5/Factory | Entered another Factory area 13017 | -4/Factory | Evolved 2 slots: Propulsion x2 13135 | -4/Factory | Zion Demo squad teleported in 13151 | -4/Factory | Discovered new exit (range 9) 13155 | -4/Factory | Entered Upper Caves 13196 | -4/Upper Caves | Learned location of 1 exit from Research 13229 | -4/Upper Caves | Encountered a Warlord checkpoint 13248 | -4/Upper Caves | Discovered new exit (range 10) 13253 | -4/Upper Caves | Entered another Upper Caves area 13446 | -4/Upper Caves | Attracted the attention of an 0b10 checkpoint 13456 | -4/Upper Caves | Identified exit to Warlord 13475 | -4/Upper Caves | Entered Warlord 13613 | -4/Warlord | Rebuked by Warlord 13638 | -4/Warlord | Warlord's base attacked by MAIN.C 13847 | -4/Warlord | Met EX-DEC 13852 | -4/Warlord | Found Prototype Piercing Weapon 13852 | -4/Warlord | Identified Vortex Lance 13856 | -4/Warlord | Found Prototype Energy Gun 13856 | -4/Warlord | Identified Vortex Rail 13861 | -4/Warlord | Found Vortex Lance 13988 | -4/Warlord | Warlord forces counterattacked 14045 | -4/Warlord | Lost 4 allies 14072 | -4/Warlord | Opened side exit 14101 | -4/Warlord | Spotted Striker 14103 | -4/Warlord | Spotted Striker 14104 | -4/Warlord | Spotted Striker 14111 | -4/Warlord | Discovered new exit (range 12) 14112 | -4/Warlord | Core integrity fell below 50% 14117 | -4/Warlord | Core integrity fell below 20% 14117 | -4/Warlord | Entered Proximity Caves 14140 | -3/Proximity Caves | Lost 4 parts (2n2u) 14164 | -3/Proximity Caves | Spotted B-86 Titan 14187 | -3/Proximity Caves | Destroyed by S-43 Plague with Heavy Machine Gun Last Messages --------------- Sealed Heavy Doors opened. 14072_ The tunnel wall slides away. 14104_ Knocked back. 14105_ Backup Propulsion III destroyed. 14105_ Knocked back. 14106_ Dropped Backup Power III. 14106_ Dropped Backup Laser III. 14107_ Backup Propulsion III destroyed. 14108_ Dropped Backup Power III. 14109_ Backup Plating III destroyed. 14109_ Dropped Huge Storage Unit. 14109_ Backup Plating III destroyed. 14111_ EXIT=FOUND 14111_ Knocked back. 14112_ Slammed into G-67 Veteran. 14113_ Knocked back. LOCATION=UNKNOWN GOAL=ESCAPE 14144_ Penetrated by Slug. 14144_ Slug penetrates Wall. Map ----- +----------------------------------------------------+ | ?????????????????????????????????????????????????? | | ?????????????????????????????????????????????????? | | ?????????????????????????????????????????????????? | | ?????????????????????????????????????????????????? | | ?????????????????????????????????????????????????? | | ?????????????????????????????????????????????????? | | ?????????????????????????????????????????????????? | | ###??????????????????????????????????????????????? | | #??????????????????????????????????????????????? | | #??????????????????????????????????????????????? | | #??????????????????????????????????????????????? | | #?????????????????? ???#??????????????????????? | | #####?????????????? ### ?????????????????????? | | ## ##?????????????? ?????????????????????? | | ## ###???????????? ?????????????????????? | | #?# ##?#####????? ?????????????????????? | | ### ### #????? ??????????????????????? | | "" #?????? ??????????????????????? | | ## ##????? ???#####??? ??????????? | | ##???? #??# ## ??????????? | | ## ####?# #?# ??????????? | | ### ### ## ????????????? | | #?# ## # ?????????????? | | ##?# # ??????????????? | | "#??# #???????????????????? | | #"#??# ## @ #???????????????????? | | ####?# #### ###???????????????????? | | #???# #??### #?????????????????????? | | #??# ## ????## #????????????????????? | | ##??# ### ????# #????????????????????? | | #???# ##?# ???? #????????????????????? | | ????# ??? ??? #????????????????????? | | ????# #??? ## ?? #???????????????????? | | ????# ???## #? ? #??????????????????? | | ????? ?????#####?? s #??????????????????? | | ??????????????????? ##??????????????????? | | ??????????????????# s ##???????????????????? | | ?????????????????? s ##????????????????????? | | ?????????????????? ss #?????????????????????? | | ?????????????????? ?????????????????????? | | ???????????????????? ?????????????????????? | | ???????????????????? ##### ?????????????????????? | | ?????????????????????????????????????????????????? | | ?????????????????????????????????????????????????? | | ?????????????????????????????????????????????????? | | ?????????????????????????????????????????????????? | | ?????????????????????????????????????????????????? | | ?????????????????????????????????????????????????? | | ?????????????????????????????????????????????????? | | ?????????????????????????????????????????????????? | +----------------------------------------------------+ Best States ------------- Heat Dissipation 58 Coolant Potential 65 Energy Generation 27 Energy Capacity 465 Matter Stores 500 Matter Capacity 500 Sight Range 18 Terrain Scan Range 16 Terrain Scan Density 10 ECM Strength 2 Base Temperature (-) 100 Armor Coverage 600 Resistance: EM 25 Evasion (%) 62 Targeting Accuracy 8 Recoil Reduction 4 Offensive Hacking 20 Authchip Count 3 Item Schematics ----------------- None Robot Schematics ------------------ R-06 Scavenger | -6/Factory | Z-intel T-07 Excavator | -6/Factory | Z-intel A-15 Conveyor | -6/Factory | Z-intel K-01 Serf | -6/Factory | Z-intel Fabricated ------------ Nothing Repaired ---------- Nothing Alien Tech Used ----------------- None Achievements -------------- None Challenges ------------ None Game ------ Seed ChainGatlingRipper Manual? 0 Play Time 01:21:56 Cumulative 110.3 hours Start 2025.08.07 @ 06:56:30 End 2025.08.07 @ 08:18:38 Sessions 1 Manual Loads 0 Difficulty Rogue Special Mode None Game No. 196 Rogue 196 Adventurer 0 Explorer 0 Win Type - Total 1 Types 1/0/0/0/0/0/0/0/0/0 Lore% 68 Gallery% 62 Achievement% 43 Wizard Run 0 Options --------- Layout 1 ASCII 0 Keyboard 0 Movement Mouse Keybinds 0 Fullscreen 1 Font 24/Smallcaps Map View 50x35 Zoom Use 0% Tactical HUD 1 Map Filters NONE Filters NONE Steam 1 RUN: a7444d17-3c88-4ba0-9a61-4ffb0b39995b